bitfinex-derivatives/quotes_SOLF0:USTF0_20250514
["timestamp","ask_amount","ask_price","bid_price","bid_amount"]
[1747187605562,5.4767,182.59,182.48,1.7403]
[1747187605763,114.96,182.63,182.48,1.7403]
[1747187606161,5.4779,182.55,182.5,5.4789]
[1747187606570,5.4182628,182.72,182.58,5.4765]
[1747187606767,0.2799,182.68,182.51,709.4782628]
[1747187606963,5.7539,182.68,182.51,709.4782628]
[1747187607166,0.2799,182.68,182.51,704.06]
[1747187607362,116.6399,182.68,182.51,704.06]
[1747187607567,0.97341711,182.67,182.51,704.06]
[1747187607768,114.32,182.66,182.51,704.06]
[1747187608468,114.32,182.66,182.52,5.4182628]
[1747187608671,114.32,182.66,182.53,1.7564]
[1747187608860,114.32,182.66,182.53,63.7564]
[1747187609064,114.32,182.66,182.56,5.4182628]
[1747187609260,114.32,182.66,182.65,5.4746]
[1747187609869,114.32,182.66,182.53,63.7564]
[1747187610073,114.32,182.66,182.53,1.7564]
[1747187610264,5.4747,182.65,182.53,1.7564]
[1747187610464,114.32,182.66,182.53,1.7564]
[1747187610771,5.4747,182.65,182.53,1.7564]
[1747187610969,114.32,182.66,182.53,1.7564]
[1747187611270,5.4755,182.63,182.53,1.7564]
[1747187611468,114.32,182.66,182.53,1.7564]
[1747187611767,114.32,182.66,182.54,3.6139]
[1747187611965,119.7943,182.66,182.54,3.6139]
[1747187612167,85.73631744,184.17,182.54,341.4139]
[1747187612168,114.8,182.73,182.54,341.4139]
[1747187612364,116.649,182.73,182.54,341.4139]
[1747187612567,5.4737,182.68,182.54,341.4139]
[1747187612769,116.649,182.73,182.54,341.4139]
[1747187612973,116.649,182.73,182.62,5.4753]
[1747187613168,5.4182628,182.71,182.54,3.6139]
[1747187613673,5.4738,182.68,182.54,3.6139]
[1747187614074,5.4738,182.68,182.64,5.4747]
[1747187614270,230.76,182.7,182.54,226.6139]
[1747187614477,230.76,182.7,182.54,3.6139]
[1747187614775,230.76,182.7,182.6,5.4761]
[1747187614975,0.97341108,182.69,182.54,3.6139]
[1747187615675,0.97341108,182.69,182.59,5.4764]
[1747187615876,0.97341108,182.69,182.54,3.6139]
[1747187616280,230.76,182.7,182.59,5.4764]
[1747187616475,230.76,182.7,182.54,3.6139]
[1747187616672,236.2332,182.7,182.56,5.4182628]
[1747187616867,114.14,182.71,182.56,228.4182628]
[1747187617278,114.14,182.71,182.51,5.4182628]
[1747187617478,1.849,182.73,182.55,7.2203628]
[1747187617678,115.829,182.73,182.55,7.2203628]
[1747187617883,5.4728,182.72,182.66,5.4742]
[1747187618384,5.4728,182.72,182.55,7.2203628]
[1747187618585,5.4729,182.71,182.55,7.2203628]
[1747187618885,115.829,182.73,182.55,1.8021]
[1747187619279,5.4739,182.68,182.55,1.8021]
[1747187619679,5.4734,182.7,182.55,1.8021]
[1747187619978,113.94,182.72,182.57,5.4182628]
[1747187620178,119.4128,182.72,182.57,5.4182628]
[1747187620684,119.4128,182.72,182.66,5.474]
[1747187620881,1.849,182.73,182.57,5.4182628]
[1747187621281,7.3215,182.73,182.57,5.4182628]
[1747187621785,5.4182628,182.81,182.61,5.4182628]
[1747187621983,228.0516,182.79,182.62,3.7145]
[1747187622183,229.0255389,182.79,182.62,3.7145]
[1747187622686,0.9739389,182.78,182.62,3.7145]
[1747187622886,0.9739389,182.78,182.62,226.7145]
[1747187623087,0.9739389,182.79,182.62,226.7145]
[1747187624386,5.4716,182.76,182.62,226.7145]
[1747187624688,0.9739389,182.79,182.62,226.7145]
[1747187624888,587.8808,182.8,182.62,226.7145]
[1747187625390,0.97344131,182.79,182.62,226.7145]
[1747187625987,5.4716,182.76,182.71,5.4726]
[1747187626188,0.97344131,182.79,182.62,226.7145]
[1747187626593,5.4711,182.77,182.72,5.4722]
[1747187626787,5.4711,182.77,182.62,226.7145]
[1747187627189,5.4714,182.76,182.72,5.4723]
[1747187627383,5.4714,182.76,182.62,226.7145]
[1747187627384,587.8808,182.8,182.62,226.7145]
[1747187627689,0.97393517,182.79,182.62,226.7145]
[1747187627990,5.4716,182.76,182.62,226.7145]
[1747187628893,5.4711,182.77,182.62,226.7145]
[1747187629189,5.4711,182.77,182.73,5.4722]
[1747187629384,5.4713,182.76,182.73,5.4722]
[1747187629585,5.4713,182.76,182.62,226.7145]
[1747187629785,5.4713,182.76,182.72,5.4723]
[1747187630092,587.8808,182.8,182.62,226.7145]
[1747187630592,584.9608,182.8,182.63,10.9505]
[1747187630792,473.36,182.8,182.77,5.4708]
[1747187631196,473.36,182.8,182.66,228.4182628]
[1747187631691,473.36,182.8,182.77,5.4708]
[1747187631893,473.36,182.8,182.68,109.92]
[1747187632095,473.36,182.8,182.68,332.92]
[1747187632396,473.36,182.8,182.78,5.4705]
[1747187632697,473.36,182.8,182.68,332.92]
[1747187633290,5.471,182.78,182.68,332.92]
[1747187633685,5.4705,182.79,182.75,5.4714]
[1747187634183,473.36,182.8,182.75,5.4714]
[1747187634387,473.36,182.8,182.76,5.4713]
[1747187634593,473.36,182.8,182.68,109.92]
[1747187634991,473.36,182.8,182.77,5.4709]
[1747187635195,473.36,182.8,182.68,109.92]
[1747187635996,478.7782628,182.8,182.64,224.7814]
[1747187636185,478.7782628,182.8,182.64,1.7814]
[1747187636391,5.4723,182.73,182.64,1.7814]
[1747187637094,5.4723,182.73,182.68,5.4736]
[1747187637297,5.4723,182.73,182.64,1.7814]
[1747187637500,113.8919,182.75,182.64,1.7814]
[1747187637697,108.42,182.75,182.64,1.7814]
[1747187638295,108.42,182.75,182.71,5.4728]
[1747187638692,108.42,182.75,182.64,1.7814]
[1747187638900,108.42,182.75,182.72,5.4724]
[1747187639197,108.42,182.75,182.64,1.7814]
[1747187639399,108.42,182.75,182.64,224.7814]
[1747187639803,108.42,182.75,182.74,5.4719]
[1747187640301,108.42,182.75,182.73,5.4722]
[1747187640598,108.42,182.75,182.64,224.7814]
[1747187640800,108.42,182.75,182.64,1.7814]
[1747187640999,108.42,182.75,182.73,5.4722]
[1747187641400,108.42,182.75,182.74,5.4719]
[1747187641901,108.42,182.75,182.64,224.7814]
[1747187642098,473.36,182.8,182.66,5.4182628]
[1747187642504,112.5297,182.82,182.66,5.4182628]
[1747187642691,107.06,182.82,182.66,228.4182628]
[1747187643003,112.5296,182.82,182.77,5.4708]
[1747187643203,112.5296,182.82,182.66,228.4182628]
[1747187643401,107.06,182.82,182.66,228.4182628]
[1747187643605,107.06,182.82,182.66,223.0]
[1747187643899,0.97130178,182.81,182.66,228.4182628]
[1747187644108,107.06,182.82,182.66,228.4182628]
[1747187644404,5.4705,182.79,182.66,223.0]
[1747187644906,112.4782628,182.82,182.66,223.0]
[1747187645104,5.4713,182.77,182.72,5.4724]
[1747187645304,0.97105456,182.81,182.64,108.6014]
[1747187645506,112.4782628,182.82,182.64,108.6014]
[1747187646308,0.97033723,182.81,182.64,108.6014]
[1747187646805,5.4705,182.79,182.65,5.4182628]
[1747187647005,0.97033723,182.81,182.65,5.4182628]
[1747187647209,107.06,182.82,182.65,5.4182628]
[1747187647405,5.4702,182.8,182.65,5.4182628]
[1747187647601,107.06,182.82,182.65,5.4182628]
[1747187647806,0.97038441,182.81,182.65,5.4182628]
[1747187648608,0.97038441,182.81,182.67,5.4182628]
[1747187648809,111.6288,182.84,182.67,5.4182628]
[1747187649002,5.4696,182.82,182.78,5.4706]
[1747187649204,111.6288,182.84,182.69,107.5]
[1747187649404,5.4693,182.83,182.79,5.4702]
[1747187649605,111.6288,182.84,182.7,3.6031]
[1747187649805,109.9,182.84,182.7,3.6031]
[1747187650006,109.9,182.84,182.82,5.4694]
[1747187650510,109.9,182.84,182.72,1.7817]
[1747187650711,109.9,182.84,182.72,224.7817]
[1747187651411,1.8653,182.87,182.72,224.7817]
[1747187652211,5.469,182.84,182.72,224.7817]
[1747187652412,1.8653,182.87,182.72,224.7817]
[1747187652813,0.9713361,182.86,182.72,224.7817]
[1747187653215,5.4697,182.82,182.72,224.7817]
[1747187653610,0.9713361,182.86,182.72,224.7817]
[1747187653814,5.4695,182.83,182.72,224.7817]
[1747187654414,5.4695,182.83,182.78,5.4705]
[1747187654813,5.469,182.84,182.72,1.7817]
[1747187655014,1.8653,182.87,182.72,1.7817]
[1747187655317,5.4693,182.83,182.72,1.7817]
[1747187655711,5.4693,182.83,182.78,5.4705]
[1747187656009,1.8653,182.87,182.72,1.7817]
[1747187656215,110.18,182.86,182.72,1.7817]
[1747187656415,111.15153396,182.86,182.76,5.4711]
[1747187656612,0.97153396,182.85,182.76,5.4711]
[1747187657017,0.97153396,182.85,182.72,1.7817]
[1747187657219,5.4701,182.81,182.72,1.7817]
[1747187657419,113.3701,182.81,182.72,1.7817]
[1747187657718,113.3701,182.81,182.76,5.4711]
[1747187658323,113.3701,182.81,182.77,5.471]
[1747187658622,107.9,182.81,182.72,1.7817]
[1747187659325,107.9,182.81,182.78,5.4707]
[1747187659917,107.9,182.81,182.72,1.7817]
[1747187660621,113.3701,182.81,182.72,1.7817]
[1747187661218,5.4702,182.8,182.72,1.7817]
[1747187661523,107.9,182.81,182.75,5.4715]
[1747187661826,5.4702,182.8,182.72,1.7817]
[1747187662124,110.18,182.86,182.72,1.7817]
[1747187662319,107.28,182.85,182.72,1.7817]
[1747187662624,5.4702,182.8,182.72,1.7817]
[1747187662922,107.28,182.85,182.72,1.7817]
[1747187663123,0.97241694,182.84,182.72,1.7817]
[1747187663521,5.4706,182.79,182.75,5.4716]
[1747187663822,0.97241694,182.84,182.72,1.7817]
[1747187664023,5.4708,182.78,182.72,1.7817]
[1747187664424,107.28,182.85,182.72,1.7817]
[1747187664724,5.4705,182.79,182.75,5.4714]
[1747187665125,107.28,182.85,182.72,1.7817]
[1747187665323,5.4709,182.78,182.74,5.4719]
[1747187665521,107.28,182.85,182.74,5.4719]
[1747187665825,0.97204212,182.84,182.75,5.4715]
[1747187666227,5.4705,182.79,182.75,5.4715]
[1747187666429,107.04,182.81,182.72,1.7817]
[1747187667430,5.4702,182.8,182.72,1.7817]
[1747187667729,107.04,182.81,182.72,1.7817]
[1747187669635,107.04,182.81,182.8,5.4701]
[1747187670931,104.72,182.83,182.81,5.4696]
[1747187671134,104.72,182.83,182.72,1.7817]
[1747187672133,104.72,182.83,182.81,5.4696]
[1747187672432,104.72,182.83,182.72,1.7817]
[1747187672927,104.72,182.83,182.8,5.4699]
[1747187673738,110.1893,182.83,182.79,5.4703]
[1747187673931,104.72,182.83,182.72,1.7817]
[1747187674437,5.4699,182.81,182.77,5.471]
[1747187674934,5.4702,182.8,182.76,5.4713]
[1747187675235,5.4702,182.8,182.72,1.7817]
[1747187675434,104.72,182.83,182.72,1.7817]
[1747187675637,5.4701,182.81,182.76,5.4711]
[1747187675933,104.72,182.83,182.72,1.7817]
[1747187676135,110.1893,182.83,182.78,5.4705]
[1747187676336,104.72,182.83,182.78,5.4705]
[1747187676635,110.1893,182.83,182.72,1.7817]
[1747187676936,114.3235628,182.87,182.72,1.7817]
[1747187677138,102.1,182.86,182.83,5.4692]
[1747187677338,0.9709743,182.86,182.72,430.6217]
[1747187677533,107.04,182.87,182.72,207.6217]
[1747187677939,112.5081,182.87,182.72,207.6217]
[1747187678231,107.04,182.87,182.72,207.6217]
[1747187679540,5.4687,182.85,182.72,207.6217]
[1747187679742,107.04,182.87,182.72,105.6217]
[1747187680242,0.97055977,182.86,182.78,5.4705]
[1747187680535,0.97055977,182.86,182.72,105.6217]
[1747187680736,0.97055977,182.86,182.76,5.4711]
[1747187680942,0.97055977,182.86,182.72,1001.7817]
[1747187682135,5.4182628,182.84,182.72,1000.0]
[1747187682540,5.4713,182.77,182.72,1005.4722]
[1747187682732,100.78,182.77,182.72,1005.4722]
[1747187683142,5.4714,182.76,182.72,1005.4722]
[1747187683939,100.78,182.77,182.72,1000.0]
[1747187684145,102.562,182.77,182.72,1000.0]
[1747187684447,1.883,182.76,182.72,1000.0]
[1747187684636,5.4722,182.73,182.72,1000.0]
[1747187685744,5.472,182.74,182.72,1000.0]
[1747187686240,1.883,182.76,182.72,1000.0]
[1747187686441,5.4722,182.73,182.72,1000.0]
[1747187689945,98.9,182.74,182.72,1000.0]
[1747187690742,104.3722,182.74,182.72,1000.0]
[1747187691046,98.9,182.74,182.72,1000.0]
[1747187691347,100.86,182.77,182.72,1000.0]
[1747187691536,100.86,182.77,182.75,5.4714]
[1747187692648,474.8321,182.87,182.72,1000.0]
[1747187692848,200.0506325,182.86,182.73,1.8833]
[1747187693041,0.9706325,182.85,182.73,5.4348]
[1747187693744,0.9706325,182.85,182.76,5.4711]
[1747187694348,5.4693,182.83,182.77,5.471]
[1747187694752,0.9706325,182.85,182.73,5.4348]
[1747187695048,97.7,182.84,182.73,5.4348]
[1747187695349,476.6626,182.87,182.83,5.4692]
[1747187695548,195.32,182.86,182.83,5.4692]
[1747187695849,195.32,182.86,182.73,5.4348]
[1747187696250,195.32,182.86,182.82,5.4693]
[1747187696449,97.82,182.86,182.73,5.4348]
[1747187696650,97.14,182.85,182.73,5.4348]
[1747187697356,97.14,182.85,182.81,5.4696]
[1747187699454,102.6087,182.85,182.81,5.4696]
[1747187699653,194.24,182.86,182.82,5.4693]
[1747187699853,194.24,182.86,182.73,228.4348]
[1747187700050,5.469,182.84,182.79,5.4702]
[1747187700250,194.24,182.86,182.73,5.4348]
[1747187700457,5.4182628,182.84,182.73,5.4348]
[1747187700653,5.4706,182.79,182.73,5.4348]
[1747187700855,5.4182628,182.84,182.73,5.4348]
[1747187701055,5.4182628,182.84,182.75,5.4714]
[1747187701448,473.02,182.87,182.73,5.4348]
[1747187701650,5.4687,182.85,182.73,5.4348]
[1747187701855,5.4687,182.85,182.73,228.4348]
[1747187702154,96.4,182.86,182.73,326.2348]
[1747187702956,101.8684,182.86,182.81,5.4696]
[1747187703152,101.8684,182.86,182.73,326.2348]
[1747187703357,96.4,182.86,182.73,326.2348]
[1747187703656,5.4684,182.86,182.82,5.4694]
[1747187703960,570.82,182.87,182.73,199.6348]
[1747187704152,5.4689,182.85,182.73,422.6348]
[1747187704356,570.82,182.87,182.73,422.6348]
[1747187704655,5.4691,182.84,182.73,422.6348]
[1747187704851,570.82,182.87,182.73,422.6348]
[1747187705346,5.4687,182.85,182.73,422.6348]
[1747187705551,570.82,182.87,182.73,326.2348]
[1747187706055,473.02,182.87,182.73,326.2348]
[1747187706456,5.4685,182.86,182.82,5.4693]
[1747187706754,473.02,182.87,182.73,103.2348]
[1747187707255,3.39563902,182.86,182.73,103.2348]
[1747187707456,4.36630881,182.86,182.73,103.2348]
[1747187707650,5.4707,182.79,182.75,5.4714]
[1747187707852,96.38,182.81,182.73,5.4348]
[1747187708556,101.8501,182.81,182.76,5.4712]
[1747187708855,3.39563902,182.8,182.73,1.8833]
[1747187709058,3.39563902,182.8,182.72,1000.0]
[1747187709458,103.58114918,182.81,182.72,1000.0]
[1747187710158,0.97042705,182.8,182.72,1000.0]
[1747187710357,103.58114918,182.81,182.72,1000.0]
[1747187710557,98.1439,182.81,182.72,1000.0]
[1747187710759,194.16,182.8,182.72,1000.0]
[1747187710959,96.38,182.8,182.72,1000.0]
[1747187712362,96.38,182.8,182.76,5.4712]
[1747187712863,96.38,182.8,182.77,5.4709]
[1747187713366,96.38,182.8,182.72,1000.0]
[1747187713560,96.36,182.82,182.72,1000.0]
[1747187713864,97.8,182.86,182.72,1000.0]
[1747187714065,96.36,182.85,182.72,1000.0]
[1747187714564,96.36,182.85,182.72,1005.43724918]
[1747187714972,96.36,182.85,182.72,1000.0]
[1747187716276,5.4689,182.84,182.8,5.4699]
[1747187716477,5.4689,182.84,182.72,1223.0]
[1747187716672,96.36,182.85,182.82,5.4695]
[1747187716878,96.36,182.85,182.72,1000.0]
[1747187717477,5.4687,182.85,182.72,1000.0]
[1747187717980,5.4687,182.85,182.81,5.4696]
[1747187718179,5.4687,182.85,182.72,1223.0]
[1747187718585,5.4687,182.85,182.81,5.4696]
[1747187719485,103.2684,182.86,182.82,5.4695]
[1747187720178,5.4677,182.89,182.75,5.43724918]
[1747187720484,97.8,182.91,182.79,5.43724918]
[1747187720677,5.4657,182.95,182.83,5.43724918]
[1747187720883,97.78,182.96,182.84,5.6008]
[1747187721283,97.78,182.96,182.84,228.6008]
[1747187722184,97.78,182.96,182.93,5.4662]
[1747187723182,97.78,182.96,182.94,5.4657]
[1747187723486,96.32,182.98,182.87,103.19724918]
[1747187723687,96.32,182.98,182.87,326.19724918]
[1747187723979,228.51689229,183.01,182.87,326.19724918]
[1747187724188,97.76,183.01,182.88,96.28]
[1747187725190,97.76,183.01,182.99,5.4644]
[1747187725994,97.76,183.01,183.0,5.4642]
[1747187726191,97.76,183.01,182.88,319.28]
[1747187726391,97.76,183.01,182.88,96.28]
[1747187726782,472.82,183.02,182.9,5.43724918]
[1747187727182,197.9227,183.05,183.0,5.4639]
[1747187727386,197.9227,183.05,182.9,228.43724918]
[1747187727587,197.9027,183.05,182.9,228.43724918]
[1747187727792,5.463,183.04,183.0,5.4639]
[1747187728593,5.463,183.04,182.99,5.4644]
[1747187729187,5.463,183.04,183.0,5.4641]
[1747187729389,192.44,183.05,182.9,228.43724918]
[1747187729589,192.44,183.05,182.9,5.43724918]
[1747187729785,192.44,183.05,182.99,5.4644]
[1747187729985,5.4633,183.03,182.9,5.43724918]
[1747187730395,5.4633,183.03,182.98,5.4647]
[1747187730694,192.44,183.05,182.9,5.43724918]
[1747187731192,5.4633,183.03,182.9,5.43724918]
[1747187731592,192.44,183.05,182.9,5.43724918]
[1747187732896,5.4639,183.01,182.9,5.43724918]
[1747187733194,192.44,183.05,182.9,5.43724918]
[1747187733394,192.44,183.05,182.91,1.7613]
[1747187733788,192.44,183.05,182.92,3.4283]
[1747187734092,5.4636,183.02,182.98,5.4645]
[1747187734400,192.44,183.05,182.92,3.4283]
[1747187735297,192.44,183.05,183.02,5.4636]
[1747187735498,192.44,183.05,182.92,3.4283]
[1747187735696,5.463,183.04,182.92,3.4283]
[1747187736092,192.44,183.05,182.92,3.4283]
[1747187736292,197.9028,183.05,183.0,5.4639]
[1747187736897,5.4631,183.04,183.0,5.4639]
[1747187737406,192.44,183.05,183.01,5.4637]
[1747187737698,192.44,183.05,182.92,3.4283]
[1747187737999,197.9027,183.05,182.92,3.4283]
[1747187738301,192.44,183.05,182.92,3.4283]
[1747187738901,5.463,183.04,183.0,5.4639]
[1747187739202,5.463,183.04,182.92,3.4283]
[1747187739503,5.463,183.04,183.0,5.464]
[1747187739800,197.9027,183.05,182.92,3.4283]
[1747187740001,197.9027,183.05,183.0,5.4639]
[1747187740307,197.9027,183.05,182.92,3.4283]
[1747187740497,197.9027,183.05,183.01,5.4638]
[1747187742303,5.463,183.04,183.0,5.4641]
[1747187742505,192.44,183.05,182.92,3.4283]
[1747187743405,192.44,183.05,183.02,5.4635]
[1747187743798,5.4626,183.06,183.02,5.4633]
[1747187744001,197.6221,183.07,182.94,3.38751554]
[1747187744204,192.16,183.07,182.94,3.38751554]
[1747187744505,5.4626,183.06,183.02,5.4634]
[1747187746300,192.14,183.07,182.94,3.38751554]
[1747187746301,96.18,183.07,182.94,3.38751554]
[1747187746508,96.18,183.07,182.97,3.38751554]
[1747187747199,96.18,183.07,183.05,5.4626]
[1747187747401,472.62,183.11,183.0,3.38751554]
[1747187747599,472.62,183.11,183.01,3.6457]
[1747187747905,101.3808,183.12,183.09,5.4615]
[1747187748106,95.92,183.12,183.09,5.4615]
[1747187748307,96.16,183.13,183.09,5.4615]
[1747187750007,101.6204,183.13,183.09,5.4615]
[1747187750311,96.16,183.13,183.09,5.4615]
[1747187752015,96.16,183.13,183.01,5.3944]
[1747187752214,5.4606,183.12,183.01,5.3944]
[1747187752409,96.16,183.13,183.07,5.4619]
[1747187752609,96.16,183.13,183.01,5.3944]
[1747187753317,96.16,183.13,183.09,5.4614]
[1747187755111,101.6203,183.13,183.09,5.4614]
[1747187756117,96.16,183.13,183.01,228.3944]
[1747187756312,96.16,183.13,183.01,5.3944]
[1747187756713,5.461,183.11,183.06,5.4621]
[1747187756914,5.461,183.11,183.01,5.3944]
[1747187757112,5.4615,183.09,183.01,5.3944]
[1747187757310,5.4615,183.09,183.01,3.6457]
[1747187757812,96.16,183.13,183.01,3.6457]
[1747187758010,96.16,183.13,183.01,1.8593]
[1747187758210,96.16,183.13,183.03,5.4632]
[1747187758211,0.96993004,183.12,183.03,5.4632]
[1747187758412,0.96993004,183.12,183.0,1000.0]
[1747187758811,0.96993004,183.12,183.02,5.4634]
[1747187759012,5.4623,183.07,183.02,5.4634]
[1747187759208,95.7,183.08,183.02,5.4634]
[1747187759719,5.4628,183.05,183.01,5.4638]
[1747187759916,5.4628,183.05,183.0,1000.0]
[1747187760218,95.7,183.08,183.0,1000.0]
[1747187760612,3.6075,183.07,183.0,1000.0]
[1747187760808,5.462,183.08,183.0,1000.0]
[1747187761008,101.122,183.08,183.0,1000.0]
[1747187762419,95.66,183.08,183.0,1000.0]
[1747187762819,95.66,183.08,183.03,5.4631]
[1747187763023,95.66,183.08,183.0,1000.0]
[1747187763319,95.66,183.08,183.02,5.4635]
[1747187763521,5.4624,183.06,183.0,1000.0]
[1747187764723,95.66,183.08,183.0,1000.0]
[1747187764922,0.9693567,183.07,183.0,1000.0]
[1747187765426,5.4638,183.02,183.0,1000.0]
[1747187765619,191.34,183.01,183.0,997.1669]
[1747187765828,193.0458,183.01,183.0,865.44343579]
[1747187766124,204.93852842,183.01,183.0,829.12503579]
[1747187766310,204.93852842,183.01,183.0,798.26023579]
[1747187766517,204.93852842,183.01,183.0,778.50983579]
[1747187767019,204.93852842,183.01,183.0,769.13763579]
[1747187767527,197.73272842,183.01,183.0,769.13763579]
[1747187768225,0.96882842,183.01,183.0,769.13763579]
[1747187768419,95.52,183.01,183.0,769.13763579]
[1747187769925,100.9839,183.01,183.0,769.13763579]
[1747187770126,95.52,183.01,183.0,769.13763579]
[1747187770629,100.9839,183.01,183.0,769.13763579]
[1747187770828,107.41217256,183.01,183.0,679.18738728]
[1747187771029,107.41217256,183.01,183.0,640.99197158]
[1747187772426,101.89217256,183.01,183.0,640.99197158]
[1747187773330,101.89217256,183.01,183.0,570.11663877]
[1747187773627,101.89217256,183.01,183.0,561.34363877]
[1747187773822,107.35217256,183.01,183.0,557.84463877]
[1747187774025,107.35217256,183.01,183.0,536.67122307]
[1747187774227,107.35217256,183.01,183.0,535.27222307]
[1747187775529,192.16827256,183.01,183.0,535.27222307]
[1747187775932,191.2,183.01,183.0,535.27222307]
[1747187776732,192.16818461,183.01,183.0,535.27222307]
[1747187776929,191.2,183.01,183.0,535.27222307]
[1747187779836,95.8,183.01,183.0,535.27222307]
[1747187780025,95.8,183.06,183.0,535.27222307]
[1747187780530,472.18,183.09,183.0,535.27222307]
[1747187780729,472.18,183.09,183.06,5.4622]
[1747187781231,472.18,183.09,183.0,535.27222307]
[1747187782033,472.18,183.09,183.03,5.463]
[1747187782227,472.18,183.09,183.0,535.27222307]
[1747187782631,472.18,183.09,183.04,5.4628]
[1747187782836,472.18,183.09,183.0,535.27222307]
[1747187783129,472.18,183.09,183.04,5.4627]
[1747187783832,472.18,183.09,183.05,5.4626]
[1747187784032,472.18,183.09,183.0,535.27222307]
[1747187784832,0.96794949,183.08,183.0,535.27222307]
[1747187785031,0.96794949,183.08,183.01,5.4639]
[1747187785228,0.96794949,183.08,183.0,535.27222307]
[1747187785628,5.4148785,183.07,183.0,535.27222307]
[1747187786027,0.96794949,183.06,183.0,535.27222307]
[1747187788635,5.4148785,183.07,183.0,535.27222307]
[1747187789034,0.96778889,183.05,183.0,535.27222307]
[1747187789229,95.16,183.04,183.0,535.27222307]
[1747187789433,95.1,183.03,183.0,535.27222307]
[1747187789636,96.06778889,183.03,183.0,535.27222307]
[1747187789837,95.1,183.03,183.0,535.27222307]
[1747187790331,0.96783161,183.02,183.0,535.27222307]
[1747187793337,95.1,183.03,183.0,535.27222307]
[1747187793539,0.96870983,183.02,183.0,535.27222307]
[1747187794338,0.96870983,183.02,183.0,445.32197456]
[1747187796841,0.96870983,183.02,183.0,355.37172605]
[1747187798047,95.18,183.01,183.0,355.37172605]
[1747187798235,95.18,183.01,183.0,360.83592605]
[1747187798236,86.6816,183.01,183.0,360.83592605]
[1747187798439,0.95118351,183.12,183.0,355.37172605]
[1747187798744,190.12,183.08,183.01,5.4636]
[1747187799042,190.12,183.08,183.0,355.37172605]
[1747187799744,0.96166565,183.07,183.0,355.37172605]
[1747187801846,1.7021,183.06,183.0,355.37172605]
[1747187802146,0.96166565,183.05,183.0,355.37172605]
[1747187802844,1.7021,183.06,183.0,355.37172605]
[1747187803046,0.96206889,183.04,183.0,355.37172605]
[1747187803440,0.96206889,183.05,183.0,355.37172605]
[1747187804645,0.96206889,183.07,183.0,355.37172605]
[1747187804847,0.96206889,183.04,183.0,355.37172605]
[1747187805546,0.96206889,183.07,183.0,355.37172605]
[1747187808848,94.68,183.06,183.0,355.37172605]
[1747187809052,94.66,183.05,183.0,355.37172605]
[1747187809349,95.62206889,183.05,183.0,355.37172605]
[1747187809548,94.66,183.05,183.0,355.37172605]
[1747187810051,0.96325022,183.04,183.0,355.37172605]
[1747187811548,0.96325022,183.04,183.0,360.83582605]
[1747187811852,0.96325022,183.04,183.0,355.37172605]
[1747187812053,94.6,183.04,183.0,355.37172605]
[1747187812452,95.2,183.08,183.0,355.37172605]
[1747187812653,95.54306357,183.07,183.0,355.37172605]
[1747187812855,0.96306357,183.06,183.0,355.37172605]
[1747187813956,94.58,183.07,183.0,355.37172605]
[1747187814154,0.9629283,183.06,183.0,355.37172605]
[1747187817660,94.58,183.07,183.0,355.37172605]
[1747187817954,0.9621122,183.06,183.0,355.37172605]
[1747187818258,5.4148785,183.04,183.0,355.37172605]
[1747187818460,0.9621122,183.03,183.0,265.42147754]
[1747187818656,94.48,183.02,183.0,265.42147754]